fUST/lending_fUST_20250206
["ID","MTS","AMOUNT","RATE_DAILY","PERIOD"]
[351868491,1738825849491,-500.0,0.00014246,2]
[351868493,1738825849501,-515.26,0.00014246,2]
[351868494,1738825849510,-500.0,0.00014246,2]
[351868496,1738825849520,-500.0,0.00014246,2]
[351868498,1738825849530,-500.0,0.00014246,2]
[351868500,1738825849540,-500.0,0.00014246,2]
[351868502,1738825849549,-1205.63,0.00014246,2]
[351868503,1738825849559,-500.0,0.00014246,2]
[351868505,1738825849568,-1952.69,0.00014246,2]
[351868507,1738825849578,-500.0,0.00014246,2]
[351868509,1738825849590,-389.23331639,0.00014246,2]
[351868511,1738825849602,-500.0,0.00014246,2]
[351868512,1738825849611,-500.0,0.00014246,2]
[351868514,1738825849621,-776.18,0.00014246,2]
[351868516,1738825849631,-500.0,0.00014246,2]
[351868518,1738825849640,-556.32,0.00014246,2]
[351868520,1738825849650,-1914.57,0.00014246,2]
[351868521,1738825849660,-804.02,0.00014246,2]
[351868523,1738825849670,-500.0,0.00014246,2]
[351868525,1738825849681,-500.0,0.00014246,2]
[351868527,1738825849690,-764.63,0.00014246,2]
[351868529,1738825849700,-932.09,0.00014246,2]
[351868530,1738825849710,-500.0,0.00014246,2]
[351868532,1738825849720,-500.0,0.00014246,2]
[351868534,1738825849730,-703.39,0.00014246,2]
[351868536,1738825849739,-506.27,0.00014246,2]
[351868538,1738825849749,-500.0,0.00014246,2]
[351868539,1738825849758,-1302.83,0.00014246,2]
[351868541,1738825849768,-679.45,0.00014246,2]
[351868543,1738825849777,-500.0,0.00014246,2]
[351868545,1738825849787,-500.0,0.00014246,2]
[351868546,1738825849796,-500.0,0.00014246,2]
[351868547,1738825849805,-648.58,0.00014246,2]
[351868548,1738825849815,-500.0,0.00014246,2]
[351868549,1738825849825,-500.0,0.00014246,2]
[351868550,1738825849835,-500.0,0.00014246,2]
[351868551,1738825849844,-976.08,0.00014246,2]
[351868552,1738825849853,-1584.55,0.00014246,2]
[351868553,1738825849863,-536.77,0.00014246,2]
[351868554,1738825849872,-500.0,0.00014246,2]
[351868555,1738825849881,-515.81,0.00014246,2]
[351868556,1738825849891,-500.0,0.00014246,2]
[351868557,1738825849902,-500.0,0.00014246,2]
[351868558,1738825849912,-500.0,0.00014246,2]
[351868559,1738825849923,-500.0,0.00014246,2]
[351868561,1738825849932,-859.86,0.00014246,2]
[351868563,1738825849942,-1650.47,0.00014246,2]
[351868565,1738825849951,-500.0,0.00014246,2]
[351868567,1738825849961,-500.0,0.00014246,2]
[351868568,1738825849970,-1397.76,0.00014246,2]
[351868571,1738825849980,-500.0,0.00014246,2]
[351868573,1738825849990,-1515.33,0.00014246,2]
[351868574,1738825850000,-500.0,0.00014246,2]
[351868576,1738825850009,-500.0,0.00014246,2]
[351868578,1738825850018,-2148.33,0.00014246,2]
[351868580,1738825850027,-616.8449243,0.00014246,2]
[351868582,1738825850037,-500.0,0.00014246,2]
[351868584,1738825850047,-5965.69,0.00014246,2]
[351868586,1738825850057,-500.0,0.00014246,2]
[351868588,1738825850067,-521.34,0.00014246,2]
[351868591,1738825850077,-732.15,0.00014246,2]
[351868593,1738825850086,-860.72,0.00014246,2]
[351868595,1738825850096,-500.0,0.00014246,2]
[351868597,1738825850108,-500.0,0.00014246,2]
[351868599,1738825850119,-500.0,0.00014246,2]
[351868601,1738825850130,-1976.58,0.00014246,2]
[351868603,1738825850141,-500.0,0.00014246,2]
[351868604,1738825850151,-2682.31,0.00014246,2]
[351868606,1738825850160,-500.0,0.00014246,2]
[351868609,1738825850170,-596.18,0.00014246,2]
[351868610,1738825850180,-500.0,0.00014246,2]
[351868612,1738825850190,-500.0,0.00014246,2]
[351868614,1738825850201,-500.0,0.00014246,2]
[351868616,1738825850210,-969.79,0.00014246,2]
[351868618,1738825850220,-739.06,0.00014246,2]
[351868620,1738825850229,-500.0,0.00014246,2]
[351868623,1738825850239,-606.33,0.00014246,2]
[351868625,1738825850250,-500.0,0.00014246,2]
[351868627,1738825850261,-500.0,0.00014246,2]
[351868629,1738825850272,-500.0,0.00014246,2]
[351868631,1738825850283,-11152.79,0.00014246,2]
[351868633,1738825850292,-4920.29,0.00014246,2]
[351868635,1738825850302,-500.0,0.00014246,2]
[351868637,1738825850312,-812.74,0.00014246,2]
[351868639,1738825850321,-3422.15,0.00014246,2]
[351868641,1738825850331,-500.0,0.00014246,2]
[351868643,1738825850341,-500.0,0.00014246,2]
[351868645,1738825850350,-1896.21,0.00014246,2]
[351868647,1738825850359,-20580.38,0.00014246,2]
[351868649,1738825850368,-4042.47,0.00014246,2]
[351868651,1738825850378,-2055.52,0.00014246,2]
[351868653,1738825850388,-529.96,0.00014246,2]
[351868655,1738825850397,-931.34,0.00014246,2]
[351868657,1738825850407,-690.97,0.00014246,2]
[351868659,1738825850418,-500.0,0.00014246,2]
[351868661,1738825850428,-1864.33,0.00014246,2]
[351868663,1738825850438,-2520.04,0.00014246,2]
[351868665,1738825850448,-1724.05,0.00014246,2]
[351868667,1738825850458,-500.0,0.00014246,2]
[351868669,1738825850467,-500.0,0.00014246,2]
[351868671,1738825850476,-500.0,0.00014246,2]
[351868673,1738825850486,-786.52,0.00014246,2]
[351868675,1738825850495,-500.0,0.00014246,2]
[351868677,1738825850504,-4900.42,0.00014246,2]
[351868679,1738825850514,-1274.05,0.00014246,2]
[351868681,1738825850524,-500.0,0.00014246,2]
[351868683,1738825850533,-547.89,0.00014246,2]
[351868685,1738825850543,-500.0,0.00014246,2]
[351868687,1738825850552,-500.0,0.00014246,2]
[351868689,1738825850562,-500.0,0.00014246,2]
[351868691,1738825850571,-646.23075932,0.00014246,2]
[351868693,1738825850580,-500.0,0.00014246,2]
[351868695,1738825850590,-332.423192,0.00014246,2]
[351868697,1738825850600,-1130.0,0.00014246,2]
[351868699,1738825850611,-3673.51,0.00014246,2]
[351868701,1738825850620,-332.423192,0.00014246,2]
[351868703,1738825850630,-1869.5,0.00014246,2]
[351868705,1738825850640,-500.0,0.00014246,2]
[351868707,1738825850650,-1788.71,0.00014246,2]
[351868709,1738825850660,-151.0,0.00014246,2]
[351868711,1738825850669,-500.0,0.00014246,2]
[351868713,1738825850679,-500.0,0.00014246,2]
[351868715,1738825850688,-151.0,0.00014246,2]
[351868717,1738825850698,-895.25,0.00014246,2]
[351868719,1738825850707,-151.0,0.00014246,2]
[351868721,1738825850716,-4444.61,0.00014246,2]
[351868723,1738825850726,-601.14,0.00014246,2]
[351868725,1738825850739,-500.0,0.00014246,2]
[351868727,1738825850748,-500.0,0.00014246,2]
[351868729,1738825850757,-819.49,0.00014246,2]
[351868731,1738825850767,-2035.28,0.00014246,2]
[351868733,1738825850777,-1557.87,0.00014246,2]
[351868735,1738825850786,-500.0,0.00014246,2]
[351868737,1738825850796,-9265.9,0.00014246,2]
[351868739,1738825850805,-500.0,0.00014246,2]
[351868741,1738825850814,-500.0,0.00014246,2]
[351868743,1738825850824,-500.0,0.00014246,2]
[351868745,1738825850833,-500.0,0.00014246,2]
[351868747,1738825850842,-55137.81,0.00014246,2]
[351868749,1738825850851,-199.653737,0.00014246,2]
[351868751,1738825850861,-500.0,0.00014246,2]
[351868753,1738825850871,-199.653737,0.00014246,2]
[351868755,1738825850880,-500.0,0.00014246,2]
[351868757,1738825850890,-925.06,0.00014246,2]
[351868759,1738825850899,-500.0,0.00014246,2]
[351868761,1738825850908,-500.0,0.00014246,2]
[351868763,1738825850918,-2866.45,0.00014246,2]
[351868765,1738825850927,-687.62,0.00014246,2]
[351868767,1738825850938,-500.0,0.00014246,2]
[351868769,1738825850948,-2324.04,0.00014246,2]
[351868771,1738825850958,-548.52,0.00014246,2]
[351868773,1738825850967,-2155.77,0.00014246,2]
[351868775,1738825850977,-151.0,0.00014246,2]
[351868777,1738825850987,-1645.36,0.00014246,2]
[351868779,1738825850996,-500.0,0.00014246,2]
[351868781,1738825851006,-151.0,0.00014246,2]
[351868783,1738825851017,-5389.6,0.00014246,2]
[351868786,1738825851027,-151.0,0.00014246,2]
[351868788,1738825851036,-151.0,0.00014246,2]
[351868790,1738825851045,-500.0,0.00014246,2]
[351868791,1738825851054,-500.0,0.00014246,2]
[351868794,1738825851063,-19603.76,0.00014246,2]
[351868796,1738825851073,-500.0,0.00014246,2]
[351868798,1738825851082,-2713.5,0.00014246,2]
[351868800,1738825851093,-512.22,0.00014246,2]
[351868802,1738825851102,-500.0,0.00014246,2]
[351868804,1738825851115,-1200.0,0.00014272,2]
[351868806,1738825851126,-500.205,0.00014272,2]
[351868808,1738825851135,-153.0,0.00014274,2]
[351868810,1738825851144,-162.22278396,0.00014382,2]
[351868812,1738825851154,-500.0,0.00014383,2]
[351868814,1738825851163,-500.0,0.00014383,2]
[351868816,1738825851173,-500.0,0.00014383,2]
[351868818,1738825851182,-500.0,0.00014383,2]
[351868820,1738825851191,-796.27,0.00014383,2]
[351868822,1738825851201,-500.0,0.00014383,2]
[351868824,1738825851209,-500.0,0.00014383,2]
[351868826,1738825851219,-500.0,0.00014383,2]
[351868828,1738825851228,-500.0,0.00014383,2]
[351868830,1738825851237,-500.0,0.00014383,2]
[351868832,1738825851246,-500.0,0.00014383,2]
[351868834,1738825851256,-500.0,0.00014383,2]
[351868836,1738825851266,-500.0,0.00014383,2]
[351868838,1738825851275,-500.0,0.00014383,2]
[351868840,1738825851284,-500.0,0.00014383,2]
[351868841,1738825851294,-500.0,0.00014383,2]
[351868843,1738825851304,-500.0,0.00014383,2]
[351868845,1738825851314,-202.84905446,0.00014383,2]
[351868847,1738825851323,-500.0,0.00014383,2]
[351868850,1738825851332,-500.0,0.00014383,2]
[351868865,1738825851343,-500.0,0.00014383,2]
[351868868,1738825851485,-1663.81,0.00014383,2]
[351868870,1738825851495,-506.64,0.00014383,2]
[351868872,1738825851504,-465.47798974,0.00014383,2]
[351868874,1738825851513,-1635.87,0.00014383,2]
[351868875,1738825851523,-892.58,0.00014383,2]
[351868877,1738825851532,-500.0,0.00014383,2]
[351868879,1738825851542,-572.5987689,0.00014383,2]
[351868882,1738825851553,-397.56830328,0.00014383,2]
[351868884,1738825851562,-647.02,0.00014383,2]
[351868886,1738825851572,-500.0,0.00014383,2]
[351868888,1738825851581,-500.0,0.00014383,2]
[351868890,1738825851590,-515.26,0.00014383,2]
[351868892,1738825851600,-500.0,0.00014383,2]
[351868894,1738825851609,-500.0,0.00014383,2]
[351868896,1738825851619,-500.0,0.00014383,2]
[351868898,1738825851628,-500.0,0.00014383,2]
[351868900,1738825851638,-1205.63,0.00014383,2]
[351868902,1738825851647,-500.0,0.00014383,2]
[351868904,1738825851656,-1952.69,0.00014383,2]
[351868906,1738825851665,-500.0,0.00014383,2]
[351868907,1738825851676,-500.0,0.00014383,2]
[351868909,1738825851685,-500.0,0.00014383,2]
[351868911,1738825851695,-776.18,0.00014383,2]
[351868913,1738825851704,-500.0,0.00014383,2]
[351868916,1738825851715,-556.32,0.00014383,2]
[351868918,1738825851724,-1914.57,0.00014383,2]
[351868920,1738825851733,-804.02,0.00014383,2]
[351868922,1738825851743,-500.0,0.00014383,2]
[351868924,1738825851752,-500.0,0.00014383,2]
[351868926,1738825851761,-764.63,0.00014383,2]
[351868928,1738825851771,-932.09,0.00014383,2]
[351868929,1738825851780,-500.0,0.00014383,2]
[351868931,1738825851790,-500.0,0.00014383,2]
[351868933,1738825851799,-703.39,0.00014383,2]
[351868936,1738825851809,-506.27,0.00014383,2]
[351868938,1738825851818,-500.0,0.00014383,2]
[351868940,1738825851828,-1302.83,0.00014383,2]
[351868941,1738825851837,-679.45,0.00014383,2]
[351868943,1738825851847,-226.68405958,0.00014383,2]
[351868945,1738825851857,-500.0,0.00014383,2]
[351868948,1738825851866,-500.0,0.00014383,2]
[351868950,1738825851876,-648.58,0.00014383,2]
[351868952,1738825851885,-500.0,0.00014383,2]
[351868954,1738825851895,-500.0,0.00014383,2]
[351868956,1738825851905,-500.0,0.00014383,2]
[351868958,1738825851915,-976.08,0.00014383,2]
[351868960,1738825851924,-1584.55,0.00014383,2]
[351868962,1738825851934,-536.77,0.00014383,2]
[351868963,1738825851944,-500.0,0.00014383,2]
[351868965,1738825851953,-515.81,0.00014383,2]
[351868967,1738825851962,-500.0,0.00014383,2]
[351868969,1738825851972,-500.0,0.00014383,2]
[351868971,1738825851982,-500.0,0.00014383,2]
[351868973,1738825851991,-500.0,0.00014383,2]
[351868975,1738825852001,-151.0,0.00014383,2]
[351868977,1738825852010,-859.86,0.00014383,2]
[351868979,1738825852020,-152.968109,0.00014383,2]
[351868981,1738825852030,-1650.47,0.00014383,2]
[351868983,1738825852040,-500.0,0.00014383,2]
[351868985,1738825852050,-349.81512601,0.00014383,2]
[351868987,1738825852060,-1397.76,0.00014383,2]
[351868989,1738825852069,-500.0,0.00014383,2]
[351868991,1738825852079,-1515.33,0.00014383,2]
[351868993,1738825852088,-500.0,0.00014383,2]
[351868995,1738825852098,-151.0,0.00014383,2]
[351868997,1738825852109,-500.0,0.00014383,2]
[351869000,1738825852120,-2148.33,0.00014383,2]
[351869002,1738825852130,-500.0,0.00014383,2]
[351869004,1738825852140,-190.312673,0.00014383,2]
[351869006,1738825852151,-5965.69,0.00014383,2]
[351869008,1738825852160,-500.0,0.00014383,2]
[351869010,1738825852169,-521.34,0.00014383,2]
[351869012,1738825852178,-732.15,0.00014383,2]
[351869014,1738825852188,-190.312673,0.00014383,2]
[351869016,1738825852198,-860.72,0.00014383,2]
[351869018,1738825852207,-500.0,0.00014383,2]
[351869019,1738825852216,-500.0,0.00014383,2]
[351869020,1738825852225,-500.0,0.00014383,2]
[351869021,1738825852235,-1976.58,0.00014383,2]
[351869022,1738825852244,-500.0,0.00014383,2]
[351869023,1738825852253,-2682.31,0.00014383,2]
[351869024,1738825852263,-500.0,0.00014383,2]
[351869025,1738825852273,-596.18,0.00014383,2]
[351869026,1738825852282,-500.0,0.00014383,2]
[351869027,1738825852291,-500.0,0.00014383,2]
[351869028,1738825852301,-500.0,0.00014383,2]
[351869030,1738825852310,-969.79,0.00014383,2]
[351869031,1738825852319,-739.06,0.00014383,2]
[351869033,1738825852328,-500.0,0.00014383,2]
[351869035,1738825852337,-606.33,0.00014383,2]
[351869037,1738825852347,-500.0,0.00014383,2]
[351869039,1738825852357,-500.0,0.00014383,2]
[351869042,1738825852366,-500.0,0.00014383,2]
[351869044,1738825852376,-151.0,0.00014383,2]
[351869046,1738825852385,-11152.79,0.00014383,2]
[351869048,1738825852394,-151.0,0.00014383,2]
[351869050,1738825852404,-4920.29,0.00014383,2]
[351869051,1738825852413,-151.0,0.00014383,2]
[351869053,1738825852422,-500.0,0.00014383,2]
[351869055,1738825852432,-812.74,0.00014383,2]
[351869057,1738825852441,-157.612997,0.00014383,2]
[351869059,1738825852451,-3422.15,0.00014383,2]
[351869062,1738825852460,-151.0,0.00014383,2]
[351869063,1738825852470,-500.0,0.00014383,2]
[351869066,1738825852479,-157.612997,0.00014383,2]
[351869067,1738825852489,-500.0,0.00014383,2]
[351869069,1738825852498,-1896.21,0.00014383,2]
[351869072,1738825852508,-17059.76010889,0.00014383,2]
[351869114,1738825852885,-2330.52069167,0.00014383,2]
[351869116,1738825852898,-1190.09919944,0.00014383,2]
[351869118,1738825852908,-4042.47,0.00014383,2]
[351869120,1738825852917,-151.0,0.00014383,2]
[351869122,1738825852927,-2055.52,0.00014383,2]
[351869124,1738825852937,-151.0,0.00014383,2]
[351869126,1738825852947,-529.96,0.00014383,2]
[351869128,1738825852956,-151.0,0.00014383,2]
[351869130,1738825852966,-931.34,0.00014383,2]
[351869132,1738825852975,-690.97,0.00014383,2]
[351869134,1738825852984,-298.92500528,0.00014383,2]
[351869136,1738825852994,-1864.33,0.00014383,2]
[351869138,1738825853003,-2520.04,0.00014383,2]
[351869140,1738825853013,-1724.05,0.00014383,2]
[351869142,1738825853022,-500.0,0.00014383,2]
[351869144,1738825853032,-500.0,0.00014383,2]
[351869146,1738825853041,-222.94555897,0.00014383,2]
[351869148,1738825853050,-786.52,0.00014383,2]
[351869150,1738825853060,-500.0,0.00014383,2]
[351869152,1738825853069,-4900.42,0.00014383,2]
[351869154,1738825853078,-1274.05,0.00014383,2]
[351869156,1738825853087,-500.0,0.00014383,2]
[351869158,1738825853097,-547.89,0.00014383,2]
[351869160,1738825853109,-500.0,0.00014383,2]
[351869162,1738825853119,-500.0,0.00014383,2]
[351869165,1738825853129,-500.0,0.00014383,2]
[351869166,1738825853139,-500.0,0.00014383,2]
[351869168,1738825853148,-332.423192,0.00014383,2]
[351869170,1738825853157,-1130.0,0.00014383,2]
[351869172,1738825853166,-3673.51,0.00014383,2]
[351869174,1738825853175,-332.423192,0.00014383,2]
[351869176,1738825853184,-1869.5,0.00014383,2]
[351869178,1738825853193,-500.0,0.00014383,2]
[351869180,1738825853202,-1788.71,0.00014383,2]
[351869182,1738825853212,-151.0,0.00014383,2]
[351869184,1738825853221,-500.0,0.00014383,2]
[351869186,1738825853230,-500.0,0.00014383,2]
[351869188,1738825853241,-151.0,0.00014383,2]
[351869190,1738825853250,-895.25,0.00014383,2]
[351869192,1738825853260,-151.0,0.00014383,2]
[351869194,1738825853270,-4444.61,0.00014383,2]
[351869196,1738825853279,-601.14,0.00014383,2]
[351869198,1738825853288,-500.0,0.00014383,2]
[351869200,1738825853298,-819.49,0.00014383,2]
[351869202,1738825853308,-500.0,0.00014383,2]
[351869204,1738825853317,-2035.28,0.00014383,2]
[351869206,1738825853327,-1557.87,0.00014383,2]
[351869208,1738825853337,-500.0,0.00014383,2]
[351869210,1738825853347,-9265.9,0.00014383,2]
[351869212,1738825853356,-500.0,0.00014383,2]
[351869214,1738825853369,-500.0,0.00014383,2]
[351869216,1738825853378,-500.0,0.00014383,2]
[351869218,1738825853388,-500.0,0.00014383,2]
[351869221,1738825853398,-55137.81,0.00014383,2]
[351869223,1738825853408,-199.653737,0.00014383,2]
[351869224,1738825853418,-500.0,0.00014383,2]
[351869227,1738825853428,-500.0,0.00014383,2]
[351869229,1738825853437,-199.653737,0.00014383,2]
[351869231,1738825853447,-925.06,0.00014383,2]
[351869232,1738825853458,-500.0,0.00014383,2]
[351869235,1738825853468,-500.0,0.00014383,2]
[351869236,1738825853480,-2866.45,0.00014383,2]
[351869239,1738825853490,-687.62,0.00014383,2]
[351869241,1738825853500,-500.0,0.00014383,2]
[351869243,1738825853510,-2324.04,0.00014383,2]
[351869245,1738825853519,-548.52,0.00014383,2]
[351869247,1738825853528,-2155.77,0.00014383,2]
[351869249,1738825853537,-1645.36,0.00014383,2]
[351869251,1738825853546,-500.0,0.00014383,2]
[351869253,1738825853555,-208.255383,0.00014383,2]
[351869255,1738825853565,-5389.6,0.00014383,2]
[351869256,1738825853574,-151.0,0.00014383,2]
[351869258,1738825853583,-151.0,0.00014383,2]
[351869260,1738825853593,-500.0,0.00014383,2]
[351869262,1738825853602,-500.0,0.00014383,2]
[351869264,1738825853611,-19603.76,0.00014383,2]
[351869266,1738825853620,-500.0,0.00014383,2]
[351869268,1738825853630,-2713.5,0.00014383,2]
[351869270,1738825853639,-512.22,0.00014383,2]
[351869273,1738825853648,-500.0,0.00014383,2]
[351869274,1738825853658,-2073.00867417,0.000144,2]
[351869276,1738825853668,-2073.00867391,0.000144,2]
[351869279,1738825853678,-2073.00867391,0.000144,2]
[351869281,1738825853687,-2073.00867391,0.000144,2]
[351869283,1738825853695,-2073.00867391,0.00014452,2]
[351869284,1738825853705,-500.0,0.0001452,2]
[351869287,1738825853715,-500.0,0.0001452,2]
[351869288,1738825853726,-500.0,0.0001452,2]
[351869291,1738825853736,-500.0,0.0001452,2]
[351869292,1738825853746,-796.27,0.0001452,2]
[351869294,1738825853755,-500.0,0.0001452,2]
[351869296,1738825853766,-500.0,0.0001452,2]
[351869298,1738825853776,-500.0,0.0001452,2]
[351869301,1738825853786,-500.0,0.0001452,2]
[351869303,1738825853801,-500.0,0.0001452,2]
[351869305,1738825853815,-295.1097495,0.0001452,2]
[351869307,1738825853824,-500.0,0.0001452,2]
[351869309,1738825853833,-500.0,0.0001452,2]
[351869311,1738825853843,-500.0,0.0001452,2]
[351869313,1738825853852,-500.0,0.0001452,2]
[351869315,1738825853863,-500.0,0.0001452,2]
[351869317,1738825853872,-500.0,0.0001452,2]
[351869319,1738825853881,-500.0,0.0001452,2]
[351869321,1738825853891,-500.0,0.0001452,2]
[351869323,1738825853900,-500.0,0.0001452,2]
[351869325,1738825853909,-1663.81,0.0001452,2]
[351869327,1738825853921,-506.64,0.0001452,2]
[351869329,1738825853932,-1635.87,0.0001452,2]
[351869331,1738825853942,-892.58,0.0001452,2]
[351869333,1738825853953,-500.0,0.0001452,2]
[351869335,1738825853962,-647.02,0.0001452,2]
[351869337,1738825853971,-500.0,0.0001452,2]
[351869339,1738825853980,-500.0,0.0001452,2]
[351869341,1738825853989,-515.26,0.0001452,2]
[351869343,1738825853999,-500.0,0.0001452,2]
[351869345,1738825854008,-151.0,0.0001452,2]
[351869347,1738825854017,-500.0,0.0001452,2]
[351869349,1738825854026,-500.0,0.0001452,2]
[351869351,1738825854035,-500.0,0.0001452,2]
[351869353,1738825854045,-1205.63,0.0001452,2]
[351869355,1738825854054,-500.0,0.0001452,2]
[351869357,1738825854063,-151.0,0.0001452,2]
[351869359,1738825854073,-1952.69,0.0001452,2]
[351869361,1738825854082,-500.0,0.0001452,2]
[351869363,1738825854092,-500.0,0.0001452,2]
[351869365,1738825854101,-500.0,0.0001452,2]
[351869368,1738825854113,-776.18,0.0001452,2]
[351869370,1738825854122,-500.0,0.0001452,2]
[351869372,1738825854132,-556.32,0.0001452,2]
[351869374,1738825854141,-1914.57,0.0001452,2]
[351869376,1738825854151,-804.02,0.0001452,2]
[351869378,1738825854161,-500.0,0.0001452,2]
[351869380,1738825854170,-500.0,0.0001452,2]
[351869382,1738825854179,-764.63,0.0001452,2]
[351869384,1738825854190,-932.09,0.0001452,2]
[351869386,1738825854199,-500.0,0.0001452,2]
[351869388,1738825854208,-500.0,0.0001452,2]
[351869390,1738825854217,-703.39,0.0001452,2]
[351869392,1738825854226,-506.27,0.0001452,2]
[351869394,1738825854235,-500.0,0.0001452,2]
[351869396,1738825854244,-1302.83,0.0001452,2]
[351869398,1738825854255,-679.45,0.0001452,2]
[351869400,1738825854265,-500.0,0.0001452,2]
[351869402,1738825854274,-500.0,0.0001452,2]
[351869404,1738825854283,-648.58,0.0001452,2]
[351869406,1738825854292,-500.0,0.0001452,2]
[351869407,1738825854301,-151.0,0.0001452,2]
[351869410,1738825854310,-500.0,0.0001452,2]
[351869412,1738825854320,-500.0,0.0001452,2]
[351869414,1738825854329,-976.08,0.0001452,2]
[351869416,1738825854338,-1584.55,0.0001452,2]
[351869418,1738825854347,-536.77,0.0001452,2]
[351869420,1738825854357,-500.0,0.0001452,2]
[351869421,1738825854366,-515.81,0.0001452,2]
[351869423,1738825854376,-500.0,0.0001452,2]
[351869429,1738825854529,-500.0,0.0001452,2]
[351869431,1738825854539,-500.0,0.0001452,2]
[351869433,1738825854549,-500.0,0.0001452,2]
[351869435,1738825854559,-859.86,0.0001452,2]
[351869437,1738825854568,-1650.47,0.0001452,2]
[351869438,1738825854578,-227.60640928,0.0001452,2]
[351869440,1738825854587,-1397.76,0.0001452,2]
[351869442,1738825854597,-500.0,0.0001452,2]
[351869444,1738825854606,-1515.33,0.0001452,2]
[351869447,1738825854619,-641.83464307,0.0001452,2]
[351869448,1738825854628,-500.0,0.0001452,2]
[351869451,1738825854641,-500.0,0.0001452,2]
[351869453,1738825854650,-5965.69,0.0001452,2]
[351869455,1738825854660,-500.0,0.0001452,2]
[351869457,1738825854670,-521.34,0.0001452,2]
[351869459,1738825854680,-732.15,0.0001452,2]
[351869460,1738825854689,-860.72,0.0001452,2]
[351869462,1738825854699,-151.0,0.0001452,2]
[351869465,1738825854709,-500.0,0.0001452,2]
[351869467,1738825854720,-500.0,0.0001452,2]
[351869468,1738825854730,-500.0,0.0001452,2]
[351869471,1738825854739,-1976.58,0.0001452,2]
[351869473,1738825854750,-500.0,0.0001452,2]
[351869475,1738825854762,-151.0,0.0001452,2]
[351869477,1738825854773,-2682.31,0.0001452,2]
[351869479,1738825854783,-500.0,0.0001452,2]
[351869481,1738825854792,-596.18,0.0001452,2]
[351869483,1738825854802,-500.0,0.0001452,2]
[351869485,1738825854811,-500.0,0.0001452,2]
[351869487,1738825854821,-500.0,0.0001452,2]
[351869489,1738825854830,-969.79,0.0001452,2]
[351869491,1738825854840,-739.06,0.0001452,2]
[351869493,1738825854849,-500.0,0.0001452,2]
[351869494,1738825854858,-606.33,0.0001452,2]
[351869496,1738825854868,-500.0,0.0001452,2]
[351869498,1738825854879,-500.0,0.0001452,2]
[351869500,1738825854888,-500.0,0.0001452,2]
[351869502,1738825854898,-11152.79,0.0001452,2]
[351869504,1738825854909,-4920.29,0.0001452,2]
[351869506,1738825854918,-500.0,0.0001452,2]
[351869508,1738825854929,-812.74,0.0001452,2]
[351869511,1738825854939,-3422.15,0.0001452,2]
[351869512,1738825854949,-500.0,0.0001452,2]
[351869515,1738825854959,-500.0,0.0001452,2]
[351869516,1738825854968,-1896.21,0.0001452,2]
[351869519,1738825854978,-20580.38,0.0001452,2]